bitfinex-derivatives/quotes_BTCF0:USTF0_20251118
["timestamp","ask_amount","ask_price","bid_price","bid_amount"]
[1763495343546,0.1073509,93211.0,93210.0,0.01514803]
[1763495344354,0.1073509,93211.0,93210.0,0.03645803]
[1763495344553,0.1073509,93211.0,93210.0,0.05819803]
[1763495345051,0.1093509,93211.0,93210.0,0.05819803]
[1763495346148,0.1093509,93211.0,93210.0,0.16555013]
[1763495346350,0.1093509,93211.0,93210.0,0.05819803]
[1763495347346,0.08357446,93211.0,93210.0,0.05819803]
[1763495347955,0.000161,93215.0,93214.0,0.1503975]
[1763495348463,0.1075073,93215.0,93214.0,0.1503975]
[1763495348656,0.000161,93215.0,93214.0,0.1503975]
[1763495349054,0.001161,93215.0,93214.0,0.1503975]
[1763495349256,0.002161,93215.0,93214.0,0.1503975]
[1763495351064,0.4681256,93233.0,93232.0,0.04305]
[1763495352159,0.4701256,93233.0,93232.0,0.04305]
[1763495352457,0.4721256,93233.0,93232.0,0.02131]
[1763495352662,0.4721256,93233.0,93230.0,0.01514803]
[1763495352855,0.4721256,93233.0,93230.0,0.00219803]
[1763495353060,0.4721256,93233.0,93231.0,0.01295]
[1763495353260,0.3648,93233.0,93232.0,0.04305]
[1763495354166,0.3628,93233.0,93232.0,0.04305]
[1763495354464,0.3638,93233.0,93232.0,0.04305]
[1763495354670,0.3638,93233.0,93231.0,0.01295]
[1763495354860,0.3638,93233.0,93231.0,0.03426]
[1763495355160,0.3638,93233.0,93231.0,0.056]
[1763495355562,0.4711256,93233.0,93232.0,0.04305]
[1763495356467,0.4711256,93233.0,93231.0,0.01295]
[1763495357060,0.4711256,93233.0,93231.0,0.03426]
[1763495357564,0.4711256,93233.0,93231.0,0.056]
[1763495357565,0.4691256,93233.0,93231.0,0.056]
[1763495357767,0.4711256,93233.0,93231.0,0.056]
[1763495357955,0.4721256,93233.0,93232.0,0.04305]
[1763495358771,0.4701256,93233.0,93232.0,0.04305]
[1763495359068,0.4711256,93233.0,93231.0,0.01295]
[1763495359261,0.4711256,93233.0,93231.0,0.03426]
[1763495359464,0.4711256,93233.0,93231.0,0.056]
[1763495359860,0.107336,93224.0,93223.0,0.0214709]
[1763495360063,0.468136,93224.0,93223.0,0.0001609]
[1763495361468,0.469136,93224.0,93223.0,0.0001609]
[1763495362268,0.469136,93224.0,93223.0,0.150908]
[1763495362465,0.3618,93224.0,93223.0,0.150908]
[1763495364078,0.3628,93224.0,93223.0,0.150908]
[1763495364873,0.3628,93224.0,93223.0,0.0435709]
[1763495365779,0.3628,93224.0,93223.0,0.0001609]
[1763495365972,0.38735095,93224.0,93223.0,0.0001609]
[1763495366970,0.1073578,93205.0,93204.0,0.03483]
[1763495367169,0.1073578,93205.0,93204.0,0.05636]
[1763495369769,0.1073578,93205.0,93204.0,0.01295]
[1763495370373,0.1073578,93205.0,93204.0,0.03467]
[1763495370567,0.1073578,93205.0,93200.0,0.00219803]
[1763495370773,0.1073682,93196.0,93195.0,0.0001609]
[1763495371378,0.107374,93191.0,93190.0,0.01516803]
[1763495371578,0.1073774,93188.0,93187.0,0.00010902]
[1763495372276,0.1074024,93167.0,93164.0,0.04334]
[1763495372482,0.1074024,93167.0,93166.0,0.04334]
[1763495372877,0.1074016,93167.0,93166.0,0.04334]
[1763495373081,0.3608,93169.0,93168.0,0.04334]
[1763495373269,0.00012922,93169.0,93168.0,0.04334]
[1763495373466,0.1074083,93162.0,93160.0,0.05631]
[1763495373671,0.1064083,93162.0,93161.0,0.04334]
[1763495373872,0.107404,93165.0,93164.0,0.02162]
[1763495374071,0.106404,93165.0,93164.0,0.04334]
[1763495374778,0.106404,93165.0,93160.0,0.01516803]
[1763495374779,0.1074085,93161.0,93160.0,0.00319803]
[1763495374977,0.7273285,93161.0,93160.0,0.00319803]
[1763495375177,0.7263285,93161.0,93160.0,0.00219803]
[1763495375479,0.7263285,93161.0,93160.0,0.03688803]
[1763495375681,0.3608,93161.0,93160.0,0.16591773]
[1763495375982,0.3608,93161.0,93160.0,0.00219803]
[1763495376487,0.3608,93161.0,93160.0,0.05850803]
[1763495377177,0.1074098,93160.0,93150.0,0.3608]
[1763495377374,0.1074189,93153.0,93150.0,0.01516803]
[1763495377574,0.1074189,93153.0,93150.0,0.05850803]
[1763495377884,0.4682189,93153.0,93150.0,0.05850803]
[1763495378472,0.4682189,93153.0,93142.0,0.1074304]
[1763495378473,0.1074287,93144.0,93140.0,0.00219803]
[1763495378678,0.1064305,93142.0,93140.0,0.00219803]
[1763495378878,0.1054305,93142.0,93140.0,0.00219803]
[1763495379078,0.1054305,93142.0,93140.0,0.01516803]
[1763495379584,0.1054305,93142.0,93140.0,0.03688803]
[1763495379781,0.1054305,93142.0,93140.0,0.001]
[1763495380170,0.1054305,93142.0,93140.0,0.01397]
[1763495380473,0.00011889,93143.0,93142.0,0.04334]
[1763495380875,0.00011889,93143.0,93141.0,0.1074307]
[1763495381078,0.10754879,93143.0,93140.0,0.00319803]
[1763495381474,0.1074466,93128.0,93126.0,0.00026845]
[1763495381671,0.7274066,93128.0,93126.0,0.00026845]
[1763495386380,0.7275266,93128.0,93127.0,0.02184776]
[1763495388489,0.7275266,93128.0,93127.0,0.04346776]
[1763495388889,0.7275266,93128.0,93127.0,0.02184776]
[1763495389591,0.7275266,93128.0,93127.0,0.00012776]
[1763495390079,0.7275266,93128.0,93127.0,0.02184776]
[1763495390390,0.7275266,93128.0,93127.0,0.04346776]
[1763495391582,0.4682466,93128.0,93127.0,0.04346776]
[1763495391782,0.62008,93128.0,93127.0,0.04346776]
[1763495392491,0.3608,93128.0,93127.0,0.04346776]
[1763495392884,0.3608,93128.0,93127.0,0.00012776]
[1763495396192,0.62008,93128.0,93127.0,0.04346776]
[1763495396393,0.3608,93128.0,93127.0,0.04346776]
[1763495396686,0.62012,93128.0,93127.0,0.04346776]
[1763495397079,0.62012,93128.0,93127.0,0.00012776]
[1763495400286,0.1074478,93127.0,93126.0,0.00026845]
[1763495400492,0.107472,93106.0,93105.0,0.05814]
[1763495400690,0.366788,93110.0,93109.0,0.04517]
[1763495400990,0.366788,93110.0,93109.0,0.1526385]
[1763495401387,0.25939788,93110.0,93109.0,0.1526385]
[1763495401991,0.25939788,93110.0,93109.0,0.04517]
[1763495402388,0.1074778,93101.0,93100.0,0.48297]
[1763495402582,0.7275978,93101.0,93100.0,0.47]
[1763495402787,0.7275978,93101.0,93100.0,0.47219803]
[1763495403180,0.7275978,93101.0,93100.0,0.62484693]
[1763495403585,0.7275978,93101.0,93100.0,0.60232693]
[1763495403781,0.7275978,93101.0,93100.0,0.51736803]
[1763495404180,0.7275978,93101.0,93100.0,0.47]
[1763495404382,0.75222016,93101.0,93100.0,0.47]
[1763495404586,0.1074939,93087.0,93086.0,0.00026857]
[1763495404781,0.1075042,93079.0,93072.0,0.02265]
[1763495404985,0.3608,93075.0,93074.0,0.04517]
[1763495405289,0.62038119,93087.0,93083.0,0.1074984]
[1763495405492,0.00010119,93087.0,93086.0,0.04517]
[1763495409789,0.00010119,93087.0,93086.0,0.1526651]
[1763495410996,0.00010119,93087.0,93086.0,0.04517]
[1763495412603,0.00016111,93096.0,93095.0,0.1526547]
[1763495413602,0.00027471,93096.0,93095.0,0.1526547]
[1763495413901,0.00027471,93096.0,93095.0,0.04517]
[1763495415501,0.02478247,93096.0,93090.0,0.02484803]
[1763495415694,0.00027471,93096.0,93090.0,0.04736803]
[1763495416098,0.00027471,93096.0,93090.0,0.00219803]
[1763495416300,0.0245033,93095.0,93090.0,0.00219803]
[1763495416491,0.3853033,93094.0,93080.0,0.01599803]
[1763495416790,0.3608,93083.0,93080.0,0.01599803]
[1763495416994,0.0245033,93082.0,93080.0,0.01599803]
[1763495417194,0.0245033,93081.0,93080.0,0.01599803]
[1763495417901,0.0245033,93081.0,93080.0,0.16867003]
[1763495418199,0.0245033,93081.0,93057.0,0.3608]
[1763495418200,0.3853033,93081.0,93057.0,0.3608]
[1763495418395,0.16893385,93080.0,93070.0,0.02484803]
[1763495418705,0.3608,93071.0,93070.0,0.02484803]
[1763495419300,0.3608,93071.0,93070.0,0.00219803]
[1763495420201,0.3608,93071.0,93070.0,0.04736803]
[1763495421308,0.4683124,93071.0,93070.0,0.04736803]
[1763495421498,0.3608,93071.0,93070.0,0.04736803]
[1763495422101,0.4683124,93071.0,93070.0,0.04736803]
[1763495422610,0.3608,93071.0,93070.0,0.04736803]
[1763495425903,0.00013368,93080.0,93079.0,0.0452]
[1763495426306,0.00013368,93080.0,93079.0,0.1527032]
[1763495426505,0.00013368,93080.0,93079.0,0.0452]
[1763495427315,0.00213368,93080.0,93079.0,0.0452]
[1763495427511,0.10963568,93080.0,93079.0,0.0452]
[1763495428405,0.13412724,93080.0,93079.0,0.0452]
[1763495429510,0.02662524,93080.0,93079.0,0.0452]
[1763495429707,0.3608,93081.0,93080.0,0.15443003]
[1763495430312,0.2596,93098.0,93080.0,0.15443003]
[1763495430313,0.3608,93089.0,93087.0,0.01271]
[1763495430614,0.3608,93099.0,93095.0,0.1522147]
[1763495431210,0.3608,93099.0,93095.0,0.04473]
[1763495431814,0.00116111,93096.0,93095.0,0.04473]
[1763495433209,0.00016111,93096.0,93095.0,0.04473]
[1763495436915,0.3608,93108.0,93107.0,0.1522008]
[1763495437211,0.3608,93108.0,93107.0,0.04473]
[1763495437414,0.38253,93108.0,93107.0,0.04473]
[1763495437616,0.40414,93108.0,93107.0,0.04473]
[1763495437816,0.37833545,93108.0,93107.0,0.04473]
[1763495440012,0.37933545,93108.0,93107.0,0.04473]
[1763495440220,0.38033545,93108.0,93107.0,0.04473]
[1763495442408,0.04334,93097.0,93096.0,0.1649221]
[1763495442615,0.04334,93097.0,93096.0,0.05744]
[1763495443417,0.02173,93097.0,93096.0,0.05744]
[1763495444719,0.04334,93097.0,93096.0,0.05744]
[1763495445314,0.04334,93106.0,93105.0,0.04473]
[1763495445813,0.01753414,93106.0,93105.0,0.04473]
[1763495446013,0.02208414,93106.0,93105.0,0.04473]
[1763495446222,0.02208414,93106.0,93105.0,0.0228]
[1763495446409,0.02208414,93106.0,93105.0,0.04473]
[1763495446617,0.0091,93105.0,93104.0,0.01271]
[1763495447008,0.0091,93105.0,93104.0,0.03551]
[1763495447722,0.0101,93105.0,93104.0,0.05744]
[1763495448321,0.0111,93105.0,93104.0,0.05744]
[1763495450421,0.002,93105.0,93104.0,0.05744]
[1763495450637,0.0111,93105.0,93104.0,0.05744]
[1763495452325,0.0091,93101.0,93100.0,0.02499803]
[1763495453037,0.0091,93088.0,93087.0,0.05744]
[1763495460140,0.1074889,93092.0,93090.0,0.00219803]
[1763495460325,0.3608,93094.0,93093.0,0.04607]
[1763495460529,0.00016111,93097.0,93096.0,0.05998]
[1763495460931,0.3608,93102.0,93101.0,0.1535478]
[1763495461840,0.37022,93102.0,93101.0,0.04607]
[1763495462224,0.3618,93102.0,93101.0,0.04607]
[1763495462641,0.37122,93102.0,93101.0,0.04607]
[1763495463133,0.39583193,93102.0,93101.0,0.04607]
[1763495463633,0.00942,93097.0,93096.0,0.05998]
[1763495463932,0.00942,93097.0,93080.0,0.01271]
[1763495463933,0.00942,93088.0,93087.0,0.05878]
[1763495464132,0.37022,93088.0,93087.0,0.05878]
[1763495464330,0.3608,93088.0,93087.0,0.05878]
[1763495465141,0.3618,93102.0,93087.0,0.05878]
[1763495465142,0.37122,93102.0,93101.0,0.04607]
[1763495465439,0.65426662,93102.0,93101.0,0.04607]
[1763495467339,0.00942,93101.0,93100.0,0.00219803]
[1763495467533,0.00942,93088.0,93087.0,0.05878]
[1763495467733,0.37022,93088.0,93087.0,0.05878]
[1763495468138,0.3608,93088.0,93087.0,0.05878]
[1763495471644,0.36551,93088.0,93087.0,0.05878]
[1763495472137,0.3608,93088.0,93087.0,0.1662739]
[1763495473241,0.3608,93088.0,93087.0,0.05878]
[1763495473944,0.36551,93088.0,93087.0,0.05878]
[1763495474240,0.37022,93088.0,93087.0,0.05878]
[1763495475342,0.37022,93088.0,93087.0,0.03596]
[1763495475938,0.37022,93088.0,93087.0,0.05878]
[1763495477944,0.00942,93087.0,93080.0,0.01271]
[1763495478247,0.00942,93087.0,93080.0,0.01490803]
[1763495478448,0.03401993,93087.0,93080.0,0.01490803]
[1763495478645,0.00942,93073.0,93072.0,0.03596]
[1763495478845,0.37022,93073.0,93072.0,0.03596]
[1763495479249,0.37022,93073.0,93072.0,0.05878]
[1763495480550,0.4683101,93073.0,93072.0,0.05878]
[1763495481145,0.4730201,93073.0,93072.0,0.05878]
[1763495482248,0.3608,93073.0,93072.0,0.05878]
[1763495482449,0.36551,93073.0,93072.0,0.05878]
[1763495482641,0.37022,93073.0,93072.0,0.05878]
[1763495485056,0.37022,93073.0,93072.0,0.03596]
[1763495485353,0.37022,93073.0,93072.0,0.05805]
[1763495486256,0.37022,93073.0,93069.0,0.00013001]
[1763495486257,0.1169336,93070.0,93069.0,0.00013001]
[1763495486758,0.3763336,93070.0,93069.0,0.04369001]
[1763495486954,0.3762936,93070.0,93069.0,0.04369001]
[1763495489145,0.26882,93070.0,93069.0,0.04369001]
[1763495489344,0.00942,93070.0,93069.0,0.04369001]
[1763495489556,0.3608,93088.0,93081.0,0.1507908]
[1763495489855,0.3608,93088.0,93087.0,0.1507839]
[1763495490357,0.3608,93097.0,93096.0,0.05671]
[1763495491250,0.37022,93097.0,93096.0,0.05671]
[1763495491558,0.3608,93097.0,93096.0,0.05671]
[1763495491749,0.25944,93100.0,93099.0,0.04329]
[1763495492259,0.36551,93105.0,93104.0,0.1507643]
[1763495492453,0.36551,93105.0,93104.0,0.04329]
[1763495492760,0.37022,93105.0,93104.0,0.02175]
[1763495493653,0.37222,93105.0,93104.0,0.02175]
[1763495494056,0.37222,93105.0,93104.0,0.04329]
[1763495494257,0.3628,93105.0,93104.0,0.04329]
[1763495494555,0.002,93105.0,93104.0,0.04329]
[1763495494758,0.3608,93124.0,93104.0,0.04329]
[1763495494759,0.03840823,93130.0,93129.0,0.1074454]
[1763495494957,0.37454,93138.0,93137.0,0.04329]
[1763495495151,0.39222842,93138.0,93137.0,0.04329]
[1763495495456,0.37454,93138.0,93137.0,0.04329]
[1763495495651,0.3608,93138.0,93137.0,0.04329]
[1763495496254,0.3608,93145.0,93144.0,0.04329]
[1763495496554,0.3608,93145.0,93140.0,0.01561803]
[1763495496555,0.00703111,93147.0,93146.0,0.04329]
[1763495496751,0.00016111,93147.0,93146.0,0.04329]
[1763495499454,0.01390111,93147.0,93146.0,0.04329]
[1763495500456,0.01374,93141.0,93140.0,0.05671]
[1763495500759,0.01374,93141.0,93140.0,0.05890803]
[1763495501160,0.00703111,93147.0,93146.0,0.04329]
[1763495501365,0.00016111,93147.0,93146.0,0.04329]
[1763495501561,0.01390111,93147.0,93146.0,0.04329]
[1763495503364,0.01490111,93147.0,93146.0,0.04329]
[1763495503567,0.00803111,93147.0,93146.0,0.04329]
[1763495503759,0.01490111,93147.0,93146.0,0.04329]
[1763495503965,0.01374,93133.0,93132.0,0.05671]
[1763495505360,0.00687,93133.0,93132.0,0.05671]
[1763495505566,0.37454,93139.0,93138.0,0.04329]
[1763495505765,0.37454,93139.0,93138.0,0.02175]
[1763495505968,0.37454,93139.0,93138.0,0.04329]
[1763495506664,0.3608,93170.0,93159.0,0.01342]
[1763495506859,0.02815873,93182.0,93181.0,0.04329]
[1763495507058,0.00026822,93206.0,93205.0,0.04329]
[1763495507268,0.00026822,93206.0,93200.0,0.00219803]
[1763495507269,0.01374,93205.0,93200.0,0.00219803]
[1763495507457,0.01374,93191.0,93190.0,0.00219803]
[1763495507657,0.01374,93191.0,93190.0,0.3608]
[1763495507967,0.00016101,93200.0,93199.0,0.04329]
[1763495508164,0.26723101,93200.0,93199.0,0.40409]
[1763495508360,0.27410101,93200.0,93199.0,0.40409]
[1763495509468,0.27510101,93200.0,93199.0,0.40409]
[1763495509863,0.00803101,93200.0,93199.0,0.40409]
[1763495510265,0.00903101,93200.0,93199.0,0.40409]
[1763495511161,0.00216101,93200.0,93199.0,0.40409]
[1763495511965,0.00903101,93200.0,93199.0,0.40409]
[1763495512158,0.01490101,93200.0,93199.0,0.40409]
[1763495512367,0.01590101,93200.0,93199.0,0.5114547]
[1763495512777,0.01490101,93200.0,93199.0,0.5114547]
[1763495513070,0.01590101,93200.0,93199.0,0.5114547]
[1763495513265,0.01590101,93200.0,93199.0,0.40409]
[1763495513466,0.01590101,93200.0,93199.0,0.3608]
[1763495516069,0.01390101,93200.0,93199.0,0.3608]
[1763495516271,0.01590101,93200.0,93199.0,0.3608]
[1763495518562,0.01490101,93200.0,93199.0,0.3608]
[1763495518865,0.01590101,93200.0,93199.0,0.3608]
[1763495519268,0.04028371,93200.0,93199.0,0.3608]
[1763495519472,0.03928371,93200.0,93199.0,0.3608]
[1763495519670,0.04028371,93200.0,93199.0,0.3608]
[1763495520368,0.04028371,93200.0,93199.0,0.4681647]
[1763495520568,0.04028371,93200.0,93199.0,0.3608]
[1763495521270,0.03341371,93200.0,93199.0,0.40557]
[1763495521472,0.04467,93225.0,93224.0,0.04477]
[1763495521662,0.04467,93225.0,93224.0,0.512906]
[1763495521867,0.37357,93240.0,93224.0,0.40557]
[1763495521868,0.26008,93237.0,93224.0,0.40557]
[1763495522169,0.04467,93231.0,93230.0,0.04696803]
[1763495522367,0.04467,93231.0,93230.0,0.00219803]
[1763495522679,0.04467,93222.0,93221.0,9.2e-07]
[1763495522867,0.04467,93208.0,93207.0,0.3608]
[1763495524266,0.04467,93208.0,93207.0,0.38298]
[1763495524878,0.04567,93208.0,93207.0,0.38298]
[1763495525178,0.001,93208.0,93207.0,0.40557]
[1763495525367,0.26016,93212.0,93211.0,0.1521209]
[1763495525766,0.00016092,93217.0,93216.0,0.04477]
[1763495525966,0.00016092,93217.0,93211.0,0.3608]
[1763495525967,0.04483092,93217.0,93211.0,0.3608]
[1763495526277,0.04467,93212.0,93211.0,0.40557]
[1763495526777,0.04567,93212.0,93211.0,0.40557]
[1763495528163,0.00216092,93217.0,93216.0,0.04477]
[1763495528765,0.00016092,93217.0,93216.0,0.04477]
[1763495529470,0.00316092,93217.0,93216.0,0.04477]
[1763495530173,0.04467,93212.0,93211.0,0.3608]
[1763495530767,0.04467,93212.0,93211.0,0.38298]
[1763495531070,0.02536092,93217.0,93216.0,0.04477]
[1763495531265,0.30791092,93217.0,93216.0,0.04477]
[1763495531767,0.04467,93212.0,93211.0,0.38298]
[1763495531968,0.04467,93212.0,93211.0,0.3608]
[1763495532667,0.04467,93212.0,93202.0,0.38298]
[1763495532668,0.04467,93203.0,93202.0,0.38298]
[1763495532878,0.04467,93203.0,93202.0,0.3608]
[1763495533378,0.06905577,93203.0,93202.0,0.38298]
[1763495533673,0.06905577,93203.0,93202.0,0.40557]
[1763495534070,0.06905577,93203.0,93202.0,0.38298]
[1763495534372,0.06905577,93203.0,93202.0,0.3608]
[1763495535168,0.07105577,93203.0,93202.0,0.3608]
[1763495536073,0.04467,93201.0,93200.0,0.00219803]
[1763495536273,0.06905577,93201.0,93200.0,0.00219803]
[1763495537675,0.04467,93199.0,93192.0,0.37451]
[1763495537867,0.06905577,93199.0,93192.0,0.3608]
[1763495538574,0.06905577,93199.0,93184.0,0.3608]
[1763495538966,0.04467,93185.0,93184.0,0.38298]
[1763495539271,0.32901577,93185.0,93184.0,0.40557]
[1763495539464,0.30654577,93185.0,93184.0,0.40557]
[1763495539664,0.28434577,93185.0,93184.0,0.40557]
[1763495540971,0.02438577,93185.0,93184.0,0.40557]
[1763495543475,0.02438577,93185.0,93180.0,0.00219803]
[1763495543476,0.04445,93181.0,93180.0,0.00219803]
[1763495543686,0.06883577,93181.0,93180.0,0.00219803]
[1763495544784,0.06883577,93181.0,93180.0,0.04510803]
[1763495545580,0.32875577,93181.0,93180.0,0.04510803]
[1763495546387,0.32875577,93181.0,93180.0,0.05849803]
[1763495549988,0.32875577,93181.0,93180.0,0.06013803]
[1763495550573,0.32875577,93181.0,93180.0,0.00219803]
[1763495550779,0.04453,93176.0,93175.0,0.00016092]
[1763495550985,0.04453,93167.0,93166.0,0.00026834]
[1763495551289,0.04453,93157.0,93156.0,0.3608]
[1763495551585,0.06891577,93157.0,93156.0,0.3608]
[1763495552183,0.06791577,93157.0,93156.0,0.3608]
[1763495552778,0.06991577,93157.0,93156.0,0.3608]
[1763495553382,0.02227,93149.0,93148.0,0.05955]
[1763495553579,0.25992,93149.0,93148.0,0.05955]
[1763495554282,0.02227,93157.0,93156.0,0.0456]
[1763495554490,0.32963041,93157.0,93156.0,0.0456]
[1763495554782,0.06975041,93157.0,93156.0,0.0456]
[1763495554983,0.32863041,93157.0,93156.0,0.0456]
[1763495555782,0.32963041,93157.0,93156.0,0.0456]
[1763495556085,0.33063041,93157.0,93156.0,0.0456]
[1763495556283,0.28610041,93157.0,93156.0,0.0456]
[1763495556992,0.30837041,93157.0,93156.0,0.0456]
[1763495557288,0.30837041,93157.0,93147.0,0.00016101]
[1763495557289,0.04453,93148.0,93147.0,0.02342101]
[1763495557481,0.04453,93148.0,93147.0,0.04576101]
[1763495558576,0.04653,93148.0,93147.0,0.04576101]
[1763495558793,0.002,93148.0,93147.0,0.04576101]
[1763495558988,0.04653,93148.0,93147.0,0.04576101]
[1763495560478,0.04553,93148.0,93147.0,0.04576101]
[1763495560680,0.04653,93148.0,93147.0,0.04576101]
[1763495560884,0.02427,93148.0,93147.0,0.04576101]
[1763495561292,0.04553,93148.0,93147.0,0.04576101]
[1763495561488,0.04653,93148.0,93147.0,0.04576101]
[1763495562193,0.02427,93148.0,93147.0,0.04576101]
[1763495562394,0.002,93148.0,93147.0,0.04576101]
[1763495563895,0.001,93148.0,93147.0,0.04576101]
[1763495564096,0.002,93148.0,93147.0,0.04576101]
[1763495564489,0.001,93148.0,93147.0,0.04576101]
[1763495564692,0.002,93148.0,93147.0,0.04576101]
[1763495566998,0.04653,93148.0,93147.0,0.04576101]
[1763495567800,0.04553,93148.0,93147.0,0.04576101]
[1763495568102,0.002,93148.0,93147.0,0.04576101]
[1763495568595,0.30441,93157.0,93156.0,0.02326]
[1763495568791,0.32864244,93157.0,93156.0,0.0456]
[1763495570712,0.33064244,93157.0,93156.0,0.0456]
[1763495571100,0.32864244,93157.0,93156.0,0.0456]
[1763495571294,0.33064244,93157.0,93156.0,0.0456]
[1763495571894,0.07076244,93157.0,93156.0,0.0456]
[1763495572098,0.33252244,93157.0,93156.0,0.0456]
[1763495572399,0.31022244,93157.0,93156.0,0.0456]
[1763495572590,0.02823244,93157.0,93156.0,0.0456]
[1763495572795,0.28795244,93157.0,93156.0,0.0456]
[1763495572994,0.28695244,93157.0,93156.0,0.0456]
[1763495573196,0.02723244,93157.0,93156.0,0.0456]
[1763495573397,0.28695244,93157.0,93156.0,0.0456]
[1763495573593,0.28495244,93157.0,93156.0,0.1530143]
[1763495573804,0.28695244,93157.0,93156.0,0.1530143]
[1763495574203,0.02523244,93157.0,93156.0,0.1530143]
[1763495574404,2.44e-06,93157.0,93156.0,0.1530143]
[1763495574706,0.00100244,93157.0,93156.0,0.0456]
[1763495574904,0.001,93157.0,93156.0,0.0456]
[1763495575105,0.002,93157.0,93156.0,0.0456]
[1763495575507,0.001,93157.0,93156.0,0.0456]
[1763495576704,0.25972,93162.0,93161.0,0.0456]
[1763495577909,0.26072,93162.0,93161.0,0.0456]
[1763495578801,0.26172,93162.0,93161.0,0.0456]
[1763495580404,0.28399,93162.0,93161.0,0.0456]
[1763495580605,0.3055,93162.0,93161.0,0.0456]
[1763495581201,0.3045,93162.0,93161.0,0.0456]
[1763495581402,0.3055,93162.0,93161.0,0.0456]
[1763495581711,0.05552,93156.0,93155.0,0.3608]
[1763495582206,0.04291,93156.0,93155.0,0.4053]
[1763495582412,0.0214,93161.0,93160.0,0.0577]
[1763495582712,0.001,93162.0,93161.0,0.0445]
[1763495582902,0.26164,93162.0,93161.0,0.0445]
[1763495583411,0.002,93162.0,93161.0,0.0445]
[1763495583808,0.001,93162.0,93161.0,0.0445]
[1763495584111,0.00016101,93166.0,93165.0,0.0445]
[1763495584412,0.00016101,93166.0,93165.0,0.4053]
[1763495584413,0.02156101,93166.0,93165.0,0.4053]
[1763495584901,0.04307101,93166.0,93165.0,0.3608]
[1763495585414,0.04291,93156.0,93155.0,0.3608]
[1763495585917,0.04291,93156.0,93155.0,0.4053]
[1763495586210,0.30255,93156.0,93155.0,0.4053]
[1763495586410,0.326749,93156.0,93155.0,0.4053]
[1763495586808,0.327749,93156.0,93155.0,0.4053]
[1763495587912,0.327749,93156.0,93155.0,0.3608]
[1763495588507,0.328749,93156.0,93155.0,0.3608]
[1763495588708,0.04291,93151.0,93150.0,0.04669803]
[1763495588906,0.067109,93151.0,93150.0,0.04669803]
[1763495589909,0.067109,93151.0,93150.0,0.00219803]
[1763495590217,0.067109,93151.0,93150.0,0.04669803]
[1763495590610,0.067109,93151.0,93150.0,0.05989803]
[1763495590809,0.326709,93151.0,93150.0,0.05989803]
[1763495591018,0.328709,93151.0,93150.0,0.05989803]
[1763495591318,0.069109,93151.0,93150.0,0.04669803]
[1763495591510,0.328709,93151.0,93150.0,0.04669803]
[1763495591914,0.327709,93151.0,93150.0,0.04669803]
[1763495592612,0.326709,93151.0,93150.0,0.02420803]
[1763495592819,0.326709,93151.0,93145.0,0.00010417]
[1763495592820,0.04291,93148.0,93145.0,0.00010417]
[1763495593011,0.04291,93127.0,93126.0,0.40556845]
[1763495593220,0.281,93127.0,93126.0,0.40556845]
[1763495593517,0.32670423,93127.0,93126.0,0.40556845]
[1763495593915,0.32682358,93127.0,93126.0,0.40556845]
[1763495594313,0.32682358,93127.0,93126.0,0.36106845]
[1763495594514,0.32682358,93127.0,93126.0,0.38307845]
[1763495594815,0.32682358,93127.0,93126.0,0.40556845]
[1763495600524,0.06722358,93127.0,93126.0,0.51301735]
[1763495600725,0.00016101,93136.0,93135.0,0.1509585]
[1763495601019,0.04470101,93136.0,93135.0,0.40432]
[1763495601321,0.06882991,93136.0,93135.0,0.40432]
[1763495601809,0.07339991,93136.0,93135.0,0.3608]
[1763495602915,0.04454,93131.0,93130.0,0.04425044]
[1763495603229,0.0686675,93131.0,93130.0,0.04425044]
[1763495605131,0.04454,93127.0,93126.0,0.36106845]
[1763495605924,0.04454,93127.0,93126.0,0.40458845]
[1763495606625,0.3041,93127.0,93126.0,0.40458845]
[1763495609219,0.32821502,93127.0,93126.0,0.00026845]
[1763495609522,0.04417,93118.0,93117.0,0.00016101]
[1763495609720,0.04417,93107.0,93106.0,0.3608]
[1763495609919,0.30373,93107.0,93106.0,0.3608]
[1763495610122,0.30373,93107.0,93106.0,0.40548]
[1763495610428,0.25956,93107.0,93106.0,0.40548]
[1763495610628,0.00219803,93110.0,93109.0,0.04468]
[1763495610919,0.01379,93128.0,93106.0,0.3608]
[1763495610920,0.25956,93119.0,93118.0,0.02152]
[1763495611128,0.25956,93119.0,93118.0,0.40548]
[1763495614428,0.30373,93119.0,93118.0,0.40548]
[1763495614919,0.04417,93110.0,93109.0,0.0448411]
[1763495615224,0.04537026,93110.0,93109.0,0.0448411]
[1763495615419,0.04537026,93110.0,93109.0,0.0001611]
[1763495615625,0.06949353,93110.0,93109.0,0.0001611]
[1763495616211,0.04417,93099.0,93098.0,0.3608]
[1763495616620,0.04417,93099.0,93098.0,0.40548]
[1763495617319,0.04517,93099.0,93098.0,0.40548]
[1763495617821,0.04617,93099.0,93098.0,0.40548]
[1763495621118,0.04617,93099.0,93098.0,0.39149979]
[1763495622119,0.07028996,93099.0,93098.0,0.39149979]
[1763495622328,0.06928996,93099.0,93098.0,0.39149979]
[1763495622529,0.07028996,93099.0,93098.0,0.39149979]
[1763495624026,0.02611996,93099.0,93098.0,0.39149979]
[1763495624330,0.002,93099.0,93098.0,0.39149979]
[1763495624831,0.001,93099.0,93098.0,0.39149979]
[1763495625026,0.002,93099.0,93098.0,0.39149979]
[1763495625232,0.22756,93100.0,93099.0,0.1521601]
[1763495625634,0.19256,93100.0,93099.0,0.1521601]
[1763495625933,0.0001611,93108.0,93107.0,0.02304]
[1763495626119,0.0001611,93108.0,93107.0,0.4913108]
[1763495626327,0.02452141,93108.0,93107.0,0.4913108]
[1763495626722,0.0001611,93108.0,93107.0,0.4913108]
[1763495626921,0.02154,93127.0,93126.0,0.02304]
[1763495627132,0.06853429,93127.0,93126.0,0.38384]
[1763495628626,0.06853429,93127.0,93126.0,0.3608]
[1763495629842,0.06953429,93127.0,93126.0,0.3608]
[1763495630039,0.07053429,93127.0,93126.0,0.3608]
[1763495631437,0.06953429,93127.0,93126.0,0.3608]
[1763495631640,0.07053429,93127.0,93126.0,0.3608]
[1763495632428,0.04417,93118.0,93117.0,0.0232011]